fUSD/lending_fUSD_20250124
["ID","MTS","AMOUNT","RATE_DAILY","PERIOD"]
[350245364,1737735049150,-521.83,0.0001883,2]
[350245365,1737735049161,-151.0,0.0001883,2]
[350245366,1737735049172,-1013.22,0.0001883,2]
[350245367,1737735049182,-500.0,0.0001883,2]
[350245368,1737735049193,-500.0,0.0001883,2]
[350245369,1737735049203,-151.0,0.0001883,2]
[350245370,1737735049214,-500.0,0.0001883,2]
[350245371,1737735049225,-500.0,0.0001883,2]
[350245372,1737735049238,-643.14601914,0.0001883,2]
[350245373,1737735049248,-151.0,0.0001883,2]
[350245374,1737735049260,-926.77,0.0001883,2]
[350245375,1737735049271,-500.0,0.0001883,2]
[350245376,1737735049281,-500.0,0.0001883,2]
[350245377,1737735049292,-275.20439181,0.0001883,2]
[350245378,1737735049302,-926.0,0.0001883,2]
[350245379,1737735049313,-151.0,0.0001883,2]
[350245380,1737735049325,-6114.66,0.0001883,2]
[350245381,1737735049336,-500.0,0.00018831,2]
[350245382,1737735049346,-500.0,0.00018831,2]
[350245383,1737735049356,-431.79023081,0.00018831,2]
[350245384,1737735049367,-500.0,0.00018831,7]
[350245385,1737735049377,-500.0,0.00018831,2]
[350245386,1737735049387,-500.0,0.00018831,2]
[350245387,1737735049397,-500.0,0.00018831,2]
[350245388,1737735049407,-500.0,0.00018831,2]
[350245389,1737735049417,-500.0,0.00018831,2]
[350245390,1737735049426,-500.0,0.00018831,2]
[350245391,1737735049436,-500.0,0.00018831,2]
[350245392,1737735049447,-747.3,0.00018831,2]
[350245393,1737735049456,-500.0,0.00018831,2]
[350245394,1737735049612,-500.0,0.00018831,2]
[350245395,1737735049622,-234.83282092,0.00018831,2]
[350245396,1737735049633,-500.0,0.00018831,2]
[350245397,1737735049642,-578.69,0.00018831,2]
[350245398,1737735049653,-500.0,0.00018831,2]
[350245399,1737735049662,-500.0,0.00018831,2]
[350245400,1737735049672,-500.0,0.00018831,2]
[350245401,1737735049683,-500.0,0.00018831,2]
[350245402,1737735049693,-500.0,0.00018831,2]
[350245403,1737735049702,-500.0,0.00018831,2]
[350245404,1737735049712,-550.89,0.00018831,2]
[350245405,1737735049722,-500.0,0.00018831,2]
[350245406,1737735049739,-500.0,0.00018831,2]
[350245407,1737735049749,-500.0,0.00018831,2]
[350245408,1737735049759,-500.0,0.00018831,2]
[350245409,1737735049769,-500.0,0.00018831,2]
[350245410,1737735049780,-615.56,0.00018831,2]
[350245411,1737735049790,-179.99,0.00018831,2]
[350245412,1737735049802,-500.0,0.00018831,2]
[350245413,1737735049812,-412.44580472,0.00018831,2]
[350245414,1737735049822,-500.0,0.00018831,2]
[350245415,1737735049831,-500.0,0.00018831,2]
[350245416,1737735049841,-500.0,0.00018831,2]
[350245417,1737735049851,-500.0,0.00018831,2]
[350245418,1737735049864,-500.0,0.00018831,2]
[350245419,1737735049876,-500.0,0.00018831,2]
[350245420,1737735049886,-500.0,0.00018831,2]
[350245421,1737735049896,-500.0,0.00018831,2]
[350245422,1737735049907,-500.0,0.00018831,2]
[350245423,1737735049917,-500.0,0.00018831,2]
[350245424,1737735049927,-167.744419,0.00018831,2]
[350245425,1737735049938,-338.162934,0.00018831,2]
[350245426,1737735049948,-338.162934,0.00018831,2]
[350245427,1737735049960,-926.663611,0.00018831,2]
[350245428,1737735049970,-151.0,0.00018831,2]
[350245429,1737735049983,-926.663611,0.00018831,2]
[350245430,1737735049993,-151.0,0.00018831,2]
[350245431,1737735050003,-151.0,0.00018831,2]
[350245432,1737735050014,-151.0,0.00018831,2]
[350245433,1737735050024,-1098.85634486,0.00018833,2]
[350245434,1737735050035,-7302.18459997,0.00018834,2]
[350245435,1737735050045,-150.0,0.00018836,2]
[350245436,1737735050055,-150.0,0.00018837,2]
[350245437,1737735050066,-2197.71268972,0.0001884,2]
[350245438,1737735050077,-261.32494262,0.00018843,2]
[350245439,1737735050088,-150.0,0.00018844,2]
[350245440,1737735050099,-2022.09554724,0.00018845,2]
[350245441,1737735050109,-150.0,0.00018846,2]
[350245442,1737735050119,-1098.85634486,0.00018846,2]
[350245443,1737735050129,-150.0,0.00018847,2]
[350245444,1737735050139,-2305.52754419,0.00018848,2]
[350245445,1737735050149,-200.0,0.00018849,2]
[350245446,1737735050158,-150.0,0.00018849,2]
[350245447,1737735050168,-2305.52754419,0.0001885,2]
[350245448,1737735050178,-2197.71268972,0.00018856,2]
[350245449,1737735050188,-150.0,0.00018857,2]
[350245450,1737735050198,-1050.9998053,0.00018857,2]
[350245451,1737735050208,-1000.0,0.00018858,2]
[350245452,1737735050219,-1000.0,0.00018858,2]
[350245453,1737735050231,-1000.0,0.00018858,2]
[350245454,1737735050241,-1000.0,0.00018858,2]
[350245455,1737735050250,-1000.0,0.00018858,2]
[350245456,1737735050260,-1000.0,0.00018858,2]
[350245457,1737735050270,-1000.0,0.00018858,2]
[350245458,1737735050280,-1000.0,0.00018858,2]
[350245459,1737735050290,-1000.0,0.00018858,2]
[350245460,1737735050299,-1000.0,0.00018858,2]
[350245461,1737735050309,-1000.0,0.00018858,2]
[350245462,1737735050320,-474.36375768,0.0001886,2]
[350245463,1737735050330,-474.36375768,0.0001886,2]
[350245464,1737735050340,-2197.71268972,0.00018866,2]
[350245465,1737735050349,-151.0,0.00018867,2]
[350245466,1737735050359,-151.0,0.00018867,2]
[350245467,1737735050369,-151.0,0.00018867,2]
[350245468,1737735050379,-500.0,0.00018867,2]
[350245469,1737735050389,-798.61,0.00018867,2]
[350245470,1737735050399,-2156.11,0.00018867,2]
[350245471,1737735050409,-500.0,0.00018867,2]
[350245472,1737735050419,-528.70322812,0.00018867,2]
[350245473,1737735050428,-927.0,0.00018867,2]
[350245474,1737735050437,-500.0,0.00018867,2]
[350245475,1737735050447,-544.0,0.00018867,2]
[350245476,1737735050457,-500.0,0.00018867,2]
[350245477,1737735050466,-517.74,0.00018867,2]
[350245478,1737735050478,-1223.83,0.00018867,2]
[350245479,1737735050487,-500.0,0.00018867,2]
[350245480,1737735050497,-1716.18,0.00018867,2]
[350245481,1737735050506,-1769.78,0.00018867,2]
[350245482,1737735050516,-617.72,0.00018867,2]
[350245483,1737735050526,-3582.9,0.00018867,2]
[350245484,1737735050536,-6343.0,0.00018867,2]
[350245485,1737735050545,-851.26,0.00018867,2]
[350245486,1737735050555,-592.94,0.00018867,2]
[350245487,1737735050564,-500.0,0.00018867,2]
[350245488,1737735050573,-805.09,0.00018867,2]
[350245489,1737735050583,-1086.75,0.00018867,2]
[350245490,1737735050592,-1200.3,0.00018867,2]
[350245491,1737735050602,-500.0,0.00018867,2]
[350245492,1737735050612,-1000.0,0.00018867,2]
[350245493,1737735050622,-474.36375768,0.00018867,2]
[350245494,1737735050631,-63592.0,0.0001887,2]
[350245495,1737735050641,-151.0,0.0001887,2]
[350245496,1737735050651,-154.032187,0.0001887,2]
[350245497,1737735050661,-151.0,0.0001887,2]
[350245498,1737735050670,-299.539064,0.0001887,2]
[350245499,1737735050680,-151.0,0.0001887,2]
[350245500,1737735050690,-151.0,0.0001887,2]
[350245501,1737735050699,-299.539064,0.0001887,2]
[350245502,1737735050709,-151.0,0.0001887,2]
[350245503,1737735050719,-151.0,0.0001887,2]
[350245504,1737735050731,-151.0,0.0001887,2]
[350245505,1737735050741,-583.716091,0.0001887,2]
[350245506,1737735050751,-151.0,0.0001887,2]
[350245507,1737735050761,-583.716091,0.0001887,2]
[350245508,1737735050771,-150.0,0.0001887,2]
[350245509,1737735050781,-151.0,0.0001887,2]
[350245510,1737735050794,-151.0,0.0001887,2]
[350245511,1737735050804,-151.0,0.0001887,2]
[350245512,1737735050814,-151.0,0.0001887,2]
[350245513,1737735050823,-151.0,0.0001887,2]
[350245514,1737735050833,-207.28720402,0.00018873,2]
[350245515,1737735050843,-500.0,0.00018873,2]
[350245516,1737735050852,-3067.5355473,0.00018874,2]
[350245517,1737735050862,-2940.1551399,0.00018874,2]
[350245518,1737735050872,-151.0,0.00018874,2]
[350245519,1737735050884,-151.0,0.00018874,2]
[350245520,1737735050894,-176.621075,0.00018874,2]
[350245521,1737735050903,-176.621075,0.00018874,2]
[350245522,1737735050913,-8675.337072,0.00018874,2]
[350245523,1737735050923,-8675.337072,0.00018874,2]
[350245524,1737735050932,-178.402075,0.00018874,2]
[350245525,1737735050943,-150.0,0.00018874,2]
[350245526,1737735050952,-151.0,0.00018874,2]
[350245527,1737735050963,-151.0,0.00018874,2]
[350245528,1737735050973,-2197.71268972,0.00018874,2]
[350245529,1737735050983,-1098.85634486,0.00018875,2]
[350245530,1737735050993,-150.0,0.00018877,2]
[350245531,1737735051003,-2022.09554724,0.00018881,2]
[350245532,1737735051012,-150.0,0.00018882,2]
[350245533,1737735051023,-1000.0,0.00018884,2]
[350245534,1737735051033,-150.0,0.00018885,2]
[350245535,1737735051043,-6475.8070422,0.00018887,2]
[350245536,1737735051054,-2481.5984189,0.00018887,2]
[350245537,1737735051064,-200.0,0.00018888,2]
[350245538,1737735051074,-150.0,0.0001889,2]
[350245539,1737735051084,-2305.52754419,0.00018893,2]
[350245540,1737735051094,-150.0,0.00018895,2]
[350245541,1737735051103,-1098.85634486,0.00018898,2]
[350245542,1737735051114,-150.0,0.00018898,2]
[350245543,1737735051123,-201.24,0.00018899,2]
[350245544,1737735051133,-5066.0,0.000189,2]
[350245545,1737735051143,-196.656917,0.000189,2]
[350245546,1737735051153,-151.0,0.000189,2]
[350245547,1737735051162,-151.0,0.000189,2]
[350245548,1737735051172,-151.0,0.000189,2]
[350245549,1737735051182,-151.0,0.000189,2]
[350245550,1737735051192,-153.012998,0.000189,2]
[350245551,1737735051201,-151.0,0.000189,2]
[350245552,1737735051211,-151.0,0.000189,2]
[350245553,1737735051220,-151.0,0.000189,2]
[350245554,1737735051231,-745.0,0.000189,2]
[350245555,1737735051241,-231.0,0.000189,2]
[350245556,1737735051250,-150.0,0.000189,2]
[350245557,1737735051260,-623.66119646,0.000189,2]
[350245558,1737735051269,-210.839671,0.000189,2]
[350245559,1737735051278,-151.0,0.000189,2]
[350245560,1737735051288,-158.085012,0.000189,2]
[350245561,1737735051298,-151.0,0.000189,2]
[350245562,1737735051307,-151.0,0.000189,2]
[350245563,1737735051317,-408.19453,0.000189,2]
[350245564,1737735051327,-408.19453,0.000189,2]
[350245565,1737735051336,-151.0,0.000189,2]
[350245566,1737735051346,-151.0,0.000189,2]
[350245567,1737735051355,-366.0,0.000189,2]
[350245568,1737735051365,-150.0,0.00018903,2]
[350245569,1737735051375,-48946.24545573,0.00018904,2]
[350245570,1737735051384,-150.0,0.00018911,2]
[350245571,1737735051395,-150.0,0.00018911,2]
[350245572,1737735051404,-7302.18459997,0.00018914,2]
[350245573,1737735051414,-2022.09554724,0.00018917,2]
[350245574,1737735051423,-150.0,0.00018917,2]
[350245575,1737735051433,-228.600647,0.00018928,2]
[350245576,1737735051443,-228.600647,0.00018928,2]
[350245577,1737735051453,-151.0,0.00018928,2]
[350245578,1737735051574,-151.0,0.00018928,2]
[350245579,1737735051595,-151.0,0.00018928,2]
[350245580,1737735051605,-254805.0,0.0001893,2]
[350245581,1737735051614,-151.0,0.0001893,2]
[350245582,1737735051624,-281.94,0.0001893,2]
[350245583,1737735051633,-151.0,0.0001893,2]
[350245584,1737735051643,-327.841214,0.0001893,2]
[350245585,1737735051652,-327.841214,0.0001893,2]
[350245586,1737735051662,-151.0,0.0001893,2]
[350245587,1737735051672,-151.0,0.0001893,2]
[350245588,1737735051681,-151.0,0.0001893,2]
[350245589,1737735051690,-151.0,0.0001893,2]
[350245590,1737735051699,-151.0,0.0001893,2]
[350245591,1737735051709,-151.0,0.0001893,2]
[350245592,1737735051719,-151.0,0.0001893,2]
[350245593,1737735051728,-151.0,0.0001893,2]
[350245594,1737735051737,-151.0,0.0001893,2]
[350245595,1737735051747,-151.0,0.0001893,2]
[350245596,1737735051756,-151.0,0.0001893,2]
[350245597,1737735051767,-151.0,0.0001893,2]
[350245598,1737735051776,-161.46379408,0.0001893,2]
[350245599,1737735051786,-151.0,0.0001893,2]
[350245600,1737735051796,-151.0,0.0001893,2]
[350245601,1737735051806,-299.539064,0.0001893,2]
[350245602,1737735051815,-151.0,0.0001893,2]
[350245603,1737735051824,-299.539064,0.0001893,2]
[350245604,1737735051834,-151.0,0.0001893,2]
[350245605,1737735051843,-151.0,0.0001893,2]
[350245606,1737735051852,-151.0,0.0001893,2]
[350245607,1737735051864,-583.716091,0.0001893,2]
[350245608,1737735051874,-151.0,0.0001893,2]
[350245609,1737735051884,-151.0,0.0001893,2]
[350245610,1737735051893,-583.716091,0.0001893,2]
[350245611,1737735051902,-151.0,0.0001893,2]
[350245612,1737735051914,-276.058161,0.0001893,2]
[350245613,1737735051924,-158.447,0.0001893,2]
[350245614,1737735051933,-151.0,0.0001893,2]
[350245615,1737735051943,-338.162934,0.0001893,2]
[350245616,1737735051953,-338.162934,0.0001893,2]
[350245617,1737735051963,-926.663611,0.0001893,2]
[350245618,1737735051973,-151.0,0.0001893,2]
[350245619,1737735051984,-926.663611,0.0001893,2]
[350245620,1737735051994,-151.0,0.0001893,2]
[350245621,1737735052003,-151.0,0.0001893,2]
[350245622,1737735052012,-151.0,0.0001893,2]
[350245623,1737735052022,-228.600647,0.0001893,2]
[350245624,1737735052033,-228.600647,0.0001893,2]
[350245625,1737735052042,-151.0,0.0001893,2]
[350245626,1737735052051,-151.0,0.0001893,2]
[350245627,1737735052061,-151.0,0.0001893,2]
[350245628,1737735052071,-151.0,0.0001893,2]
[350245629,1737735052080,-151.0,0.0001893,2]
[350245630,1737735052089,-151.0,0.0001893,2]
[350245631,1737735052099,-408.19453,0.0001893,2]
[350245632,1737735052108,-408.19453,0.0001893,2]
[350245633,1737735052117,-151.0,0.0001893,2]
[350245634,1737735052126,-151.0,0.0001893,2]
[350245635,1737735052136,-151.0,0.0001893,2]
[350245636,1737735052145,-151.0,0.0001893,2]
[350245637,1737735052154,-176.621075,0.0001893,2]
[350245638,1737735052164,-176.621075,0.0001893,2]
[350245639,1737735052173,-8675.337072,0.0001893,2]
[350245640,1737735052182,-8675.337072,0.0001893,2]
[350245641,1737735052192,-166.132516,0.0001893,2]
[350245642,1737735052202,-151.0,0.0001893,2]
[350245643,1737735052211,-151.0,0.0001893,2]
[350245644,1737735052220,-151.0,0.0001893,2]
[350245645,1737735052231,-151.0,0.0001893,2]
[350245646,1737735052240,-150.0,0.00018933,2]
[350245647,1737735052250,-150.0,0.00018938,2]
[350245648,1737735052259,-150.0,0.0001894,2]
[350245649,1737735052268,-1220.4670632,0.0001894,2]
[350245650,1737735052278,-170.0,0.0001895,2]
[350245651,1737735052287,-6732.106198,0.00018953,2]
[350245652,1737735052301,-2868.3569348,0.00018953,2]
[350245653,1737735052311,-3545.6126957,0.00018953,2]
[350245654,1737735052320,-3398.3799799,0.00018953,2]
[350245655,1737735052331,-2022.09554724,0.00018953,2]
[350245656,1737735052340,-700.0,0.00018954,2]
[350245657,1737735052350,-700.0,0.00018954,2]
[350245658,1737735052359,-700.0,0.00018954,2]
[350245659,1737735052369,-700.0,0.00018954,2]
[350245660,1737735052379,-700.0,0.00018954,2]
[350245661,1737735052389,-700.0,0.00018954,2]
[350245662,1737735052399,-700.0,0.00018954,2]
[350245663,1737735052408,-700.0,0.00018954,2]
[350245664,1737735052418,-700.0,0.00018954,2]
[350245665,1737735052427,-700.0,0.00018954,2]
[350245666,1737735052437,-5205.14377295,0.0001896,2]
[350245667,1737735052447,-509.51,0.00018966,2]
[350245668,1737735052456,-577.72,0.00018966,2]
[350245669,1737735052466,-580.64,0.00018966,2]
[350245670,1737735052478,-679.78,0.00018966,2]
[350245671,1737735052488,-1705.53,0.00018966,2]
[350245672,1737735052497,-2554.5,0.00018966,2]
[350245673,1737735052506,-676.513947,0.00018966,2]
[350245674,1737735052516,-500.0,0.00018966,2]
[350245675,1737735052525,-956.9,0.00018966,2]
[350245676,1737735052535,-1945.88,0.00018966,2]
[350245677,1737735052544,-2012.13,0.00018966,2]
[350245678,1737735052553,-622.12,0.00018966,2]
[350245679,1737735052562,-846.729176,0.00018966,2]
[350245680,1737735052572,-500.0,0.00018966,2]
[350245681,1737735052581,-1583.64,0.00018966,2]
[350245682,1737735052591,-564.16,0.00018966,2]
[350245683,1737735052600,-500.0,0.00018966,2]
[350245684,1737735052609,-1121.35,0.00018966,2]
[350245685,1737735052619,-500.0,0.00018966,2]
[350245686,1737735052628,-871.63,0.00018966,2]
[350245687,1737735052638,-1370.61,0.00018966,2]
[350245688,1737735052647,-705.29,0.00018966,2]
[350245689,1737735052657,-1962.44,0.00018966,2]
[350245690,1737735052666,-718.17,0.00018966,2]
[350245691,1737735052676,-619.05,0.00018966,2]
[350245692,1737735052686,-865.04,0.00018966,2]
[350245693,1737735052695,-500.0,0.00018966,2]
[350245694,1737735052705,-2217.77,0.00018966,2]
[350245695,1737735052714,-722.1,0.00018966,2]
[350245696,1737735052724,-562.1,0.00018966,2]
[350245697,1737735052735,-2901.51,0.00018966,2]
[350245698,1737735052745,-503.38,0.00018966,2]
[350245699,1737735052754,-1511.51,0.00018966,2]
[350245700,1737735052764,-500.0,0.00018966,2]
[350245701,1737735052773,-1656.27,0.00018966,2]
[350245702,1737735052783,-831.3,0.00018966,2]
[350245703,1737735052793,-1027.33,0.00018966,2]
[350245704,1737735052802,-1185.98,0.00018966,2]
[350245705,1737735052812,-985.79,0.00018966,2]
[350245706,1737735052821,-2108.39,0.00018966,2]
[350245707,1737735052831,-1080.47,0.00018966,2]
[350245708,1737735052841,-838.77,0.00018966,2]
[350245709,1737735052851,-538.96,0.00018966,2]
[350245710,1737735052863,-500.0,0.00018966,2]
[350245711,1737735052875,-578.58,0.00018966,2]
[350245712,1737735052888,-2039.23,0.00018966,2]
[350245713,1737735052898,-1068.15,0.00018966,2]
[350245714,1737735052909,-500.0,0.00018966,2]
[350245715,1737735052918,-1155.96,0.00018966,2]
[350245716,1737735052928,-2273.11,0.00018966,2]
[350245717,1737735052939,-1338.57,0.00018966,2]
[350245718,1737735052949,-3483.22,0.00018966,2]
[350245719,1737735052960,-500.0,0.00018966,2]
[350245720,1737735052970,-872.95,0.00018966,2]
[350245721,1737735052981,-1147.06,0.00018966,2]
[350245722,1737735052992,-500.0,0.00018966,2]
[350245723,1737735053002,-500.0,0.00018966,2]
[350245724,1737735053012,-1277.07,0.00018966,2]
[350245725,1737735053021,-2989.39,0.00018966,2]
[350245726,1737735053031,-644.25,0.00018966,2]
[350245727,1737735053041,-871.11,0.00018966,2]
[350245728,1737735053052,-500.0,0.00018967,2]
[350245729,1737735053061,-500.0,0.00018967,2]
[350245730,1737735053071,-500.0,0.00018967,2]
[350245731,1737735053082,-500.0,0.00018967,2]
[350245732,1737735053092,-500.0,0.00018967,2]
[350245733,1737735053102,-594.74273591,0.00018967,2]
[350245734,1737735053112,-152.39518035,0.00018967,2]
[350245735,1737735053121,-500.0,0.00018967,2]
[350245736,1737735053131,-500.0,0.00018967,2]
[350245737,1737735053141,-500.0,0.00018967,2]
[350245738,1737735053151,-500.0,0.00018967,2]
[350245739,1737735053161,-500.0,0.00018967,2]
[350245740,1737735053171,-500.0,0.00018967,2]
[350245741,1737735053180,-500.0,0.00018967,2]
[350245742,1737735053189,-500.0,0.00018967,2]
[350245743,1737735053199,-500.0,0.00018967,2]
[350245744,1737735053209,-500.0,0.00018967,2]
[350245745,1737735053219,-500.0,0.00018967,2]
[350245746,1737735053230,-677.93,0.00018967,2]
[350245747,1737735053240,-500.0,0.00018967,2]
[350245748,1737735053249,-660.08,0.00018967,2]
[350245749,1737735053384,-500.0,0.00018967,2]
[350245750,1737735053394,-500.0,0.00018967,2]
[350245751,1737735053404,-589.35,0.00018967,2]
[350245752,1737735053414,-500.0,0.00018967,2]
[350245753,1737735053423,-500.0,0.00018967,2]
[350245754,1737735053433,-500.0,0.00018967,2]
[350245755,1737735053443,-500.0,0.00018967,2]
[350245756,1737735053452,-770.43,0.00018967,2]
[350245757,1737735053462,-500.0,0.00018967,2]
[350245758,1737735053471,-500.0,0.00018967,2]
[350245759,1737735053482,-500.0,0.00018967,2]
[350245760,1737735053492,-513.79,0.00018967,2]
[350245761,1737735053502,-500.0,0.00018967,2]
[350245762,1737735053511,-189.74836855,0.00018967,2]
[350245763,1737735053521,-500.0,0.00018967,2]
[350245764,1737735053531,-339.17941718,0.00018967,2]
[350245765,1737735053540,-500.0,0.00018967,2]
[350245766,1737735053551,-500.0,0.00018967,2]
[350245767,1737735053560,-580.89,0.00018967,2]
[350245768,1737735053570,-614.29,0.00018967,2]
[350245769,1737735053580,-483.23077691,0.00018967,2]
[350245770,1737735053589,-500.0,0.00018967,2]
[350245771,1737735053599,-500.0,0.00018967,2]
[350245772,1737735053609,-500.0,0.00018967,2]
[350245773,1737735053618,-500.0,0.00018967,2]
[350245774,1737735053628,-566.81,0.00018967,2]
[350245775,1737735053638,-767.86,0.00018967,2]
[350245776,1737735053647,-500.0,0.00018967,2]
[350245777,1737735053658,-654.02,0.00018967,2]
[350245778,1737735053668,-612.37732378,0.00018967,2]
[350245779,1737735053677,-500.0,0.00018967,2]
[350245780,1737735053687,-500.0,0.00018967,2]
[350245781,1737735053697,-500.0,0.00018967,2]
[350245782,1737735053707,-500.0,0.00018967,2]
[350245783,1737735053716,-500.0,0.00018967,2]
[350245784,1737735053727,-500.0,0.00018967,2]
[350245785,1737735053736,-285.59736766,0.00018967,2]
[350245786,1737735053746,-500.0,0.00018967,2]
[350245787,1737735053756,-500.0,0.00018967,2]
[350245788,1737735053765,-500.0,0.00018967,2]
[350245789,1737735053775,-387.1072805,0.00018967,2]
[350245790,1737735053784,-500.0,0.00018967,2]
[350245791,1737735053793,-500.0,0.00018967,2]
[350245792,1737735053803,-315.68402906,0.00018967,2]
[350245793,1737735053813,-500.0,0.00018967,2]
[350245794,1737735053823,-541.13978237,0.00018967,2]
[350245795,1737735053832,-500.0,0.00018967,2]
[350245796,1737735053842,-500.0,0.00018967,2]
[350245797,1737735053852,-500.0,0.00018967,2]
[350245798,1737735053864,-500.0,0.00018967,2]
[350245799,1737735053875,-500.0,0.00018967,2]
[350245800,1737735053885,-500.0,0.00018967,2]
[350245801,1737735053895,-500.0,0.00018967,2]
[350245802,1737735053905,-500.0,0.00018967,2]
[350245803,1737735053915,-509.94,0.00018967,2]
[350245804,1737735053925,-540.8,0.00018967,2]
[350245805,1737735053934,-151.0,0.00018967,2]
[350245806,1737735053946,-500.0,0.00018967,2]
[350245807,1737735053956,-798.82,0.00018967,2]
[350245808,1737735053966,-500.0,0.00018967,2]
[350245809,1737735053976,-652.05,0.00018967,2]
[350245810,1737735053990,-500.0,0.00018967,2]
[350245811,1737735054000,-500.0,0.00018967,2]
[350245812,1737735054011,-500.0,0.00018967,2]
[350245813,1737735054021,-846.33,0.00018967,2]
[350245814,1737735054031,-770.06,0.00018967,2]
[350245815,1737735054042,-500.0,0.00018967,2]
[350245816,1737735054051,-937.47,0.00018967,2]
[350245817,1737735054062,-500.0,0.00018967,2]
[350245818,1737735054071,-672.05,0.00018967,2]
[350245819,1737735054081,-500.0,0.00018967,2]
[350245820,1737735054091,-692.99,0.00018967,2]
[350245821,1737735054101,-500.0,0.00018967,2]
[350245822,1737735054111,-500.0,0.00018967,2]
[350245823,1737735054121,-500.0,0.00018967,2]
[350245824,1737735054131,-500.0,0.00018967,2]
[350245825,1737735054140,-500.0,0.00018967,2]
[350245826,1737735054150,-500.0,0.00018967,2]
[350245827,1737735054160,-1011.61,0.00018967,2]
[350245828,1737735054169,-500.0,0.00018967,2]
[350245829,1737735054179,-151.0,0.00018967,2]
[350245830,1737735054188,-500.0,0.00018967,2]
[350245831,1737735054198,-500.0,0.00018967,2]
[350245832,1737735054208,-151.0,0.00018967,2]
[350245833,1737735054218,-416.99793263,0.00018967,2]
[350245834,1737735054228,-954.97,0.00018967,2]
[350245835,1737735054241,-151.0,0.00018967,2]
[350245836,1737735054251,-299.539064,0.00018967,2]
[350245837,1737735054261,-151.0,0.00018967,2]
[350245838,1737735054270,-500.0,0.00018967,2]
[350245839,1737735054281,-299.539064,0.00018967,2]
[350245840,1737735054290,-594.05,0.00018967,2]
[350245841,1737735054300,-500.0,0.00018967,2]
[350245842,1737735054310,-614.05,0.00018967,2]
[350245843,1737735054320,-151.0,0.00018967,2]
[350245844,1737735054330,-652.47,0.00018967,2]
[350245845,1737735054340,-151.0,0.00018967,2]
[350245846,1737735054351,-500.0,0.00018967,2]
[350245847,1737735054360,-500.0,0.00018967,2]
[350245848,1737735054370,-151.0,0.00018967,2]
[350245849,1737735054379,-500.0,0.00018967,2]
[350245850,1737735054388,-500.0,0.00018967,2]
[350245851,1737735054399,-583.716091,0.00018967,2]
[350245852,1737735054409,-500.0,0.00018967,2]
[350245853,1737735054419,-151.0,0.00018967,2]
[350245854,1737735054429,-500.0,0.00018967,2]
[350245855,1737735054439,-849.3,0.00018967,2]
[350245856,1737735054448,-151.0,0.00018967,2]
[350245857,1737735054458,-500.0,0.00018967,2]
[350245858,1737735054467,-583.716091,0.00018967,2]
[350245859,1737735054476,-708.17,0.00018967,2]
[350245860,1737735054490,-511.38,0.00018967,2]
[350245861,1737735054500,-833.01,0.00018967,2]
[350245862,1737735054510,-681.69,0.00018967,2]
[350245863,1737735054519,-500.0,0.00018967,2]